{"text_format":"3","workbook":"xlsx","n_sheets":2,"sheets":["Svorio sekmo priemonės diagrama","Skaičiavimai"],"not_rendered":{"charts":1,"defined_names":7},"read":"whole","date_system":"1900"}

{"sheet":"Svorio sekmo priemonės diagrama","index":0,"n_rows":129,"n_cols":11,"rows_kept":129,"merged":[[0,5,0,9],[1,6,3,9]]}
[null,"SIEKIAMAS SVORIS","DIAGRAMOS RODINYS",null,null,"  NERINGOS NUMESTAS SVORIS"]
[{"$nulls":6},"SEKIMO PRIEMONĖ"]
[null,{"v":172,"d":"172.0"},"PER SAVAITĘ",{"$nulls":7}," "]
[]
[]
[{"$nulls":10}," "]
{"$rows_empty":18}
[null,"DATA","SVORIS"]
[null,"2012-11-30",{"v":176,"d":"176.0"}]
[null,"2012-12-07",{"v":176,"d":"176.0"}]
[null,"2012-12-14",177.6]
[null,"2012-12-21",176.5]
[null,"2012-12-28",176.1]
[null,"2013-01-04",{"v":174,"d":"174.0"}]
[null,"2013-01-11",{"v":173,"d":"173.0"}]
[null,"2013-01-18",{"v":172,"d":"172.0"}]
[null,"2013-01-25",{"v":172,"d":"172.0"}]
[null,"2013-02-01",{"v":173,"d":"173.0"}]
[null,"2013-02-08",{"v":174,"d":"174.0"}]
[null,"2013-02-15",{"v":175,"d":"175.0"}]
[null,"2013-02-22"]
[null,"2013-03-01"]
[null,"2013-03-08"]
[null,"2013-03-15"]
[null,"2013-03-22"]
[null,"2013-03-29"]
[null,"2013-04-05"]
[null,"2013-04-12"]
[null,"2013-04-19"]
[null,"2013-04-26"]
[null,"2013-05-03"]
[null,"2013-05-10"]
[null,"2013-05-17"]
[null,"2013-05-24"]
[null,"2013-05-31"]
[null,"2013-06-07"]
[null,"2013-06-14"]
[null,"2013-06-21"]
[null,"2013-06-28"]
[null,"2013-07-05"]
[null,"2013-07-12"]
[null,"2013-07-19"]
[null,"2013-07-26"]
[null,"2013-08-02"]
[null,"2013-08-09"]
[null,"2013-08-16"]
[null,"2013-08-23"]
[null,"2013-08-30"]
[null,"2013-09-06"]
[null,"2013-09-13"]
[null,"2013-09-20"]
[null,"2013-09-27"]
[null,"2013-10-04"]
[null,"2013-10-11"]
[null,"2013-10-18"]
[null,"2013-10-25"]
[null,"2013-11-01"]
[null,"2013-11-08"]
[null,"2013-11-15"]
[null,"2013-11-22"]
[null,"2013-11-29"]
[null,"2013-12-06"]
[null,"2013-12-13"]
[null,"2013-12-20"]
[null,"2013-12-27"]
[null,"2014-01-03"]
[null,"2014-01-10"]
[null,"2014-01-17"]
[null,"2014-01-24"]
[null,"2014-01-31"]
[null,"2014-02-07"]
[null,"2014-02-14"]
[null,"2014-02-21"]
[null,"2014-02-28"]
[null,"2014-03-07"]
[null,"2014-03-14"]
[null,"2014-03-21"]
[null,"2014-03-28"]
[null,"2014-04-04"]
[null,"2014-04-11"]
[null,"2014-04-18"]
[null,"2014-04-25"]
[null,"2014-05-02"]
[null,"2014-05-09"]
[null,"2014-05-16"]
[null,"2014-05-23"]
[null,"2014-05-30"]
[null,"2014-06-06"]
[null,"2014-06-13"]
[null,"2014-06-20"]
[null,"2014-06-27"]
[null,"2014-07-04"]
[null,"2014-07-11"]
[null,"2014-07-18"]
[null,"2014-07-25"]
[null,"2014-08-01"]
[null,"2014-08-08"]
[null,"2014-08-15"]
[null,"2014-08-22"]
[null,"2014-08-29"]
[null,"2014-09-05"]
[null,"2014-09-12"]
[null,"2014-09-19"]
[null,"2014-09-26"]
[null,"2014-10-03"]
[null,"2014-10-10"]
[null,"2014-10-17"]
[null,"2014-10-24"]
[null,"2014-10-31"]
[null,"2014-11-07"]
[null,"2014-11-14"]
[null,"2014-11-21"]

{"sheet":"Skaičiavimai","index":1,"n_rows":108,"n_cols":17,"rows_kept":108,"hidden":true}
["*** Lapas turi būti paslėptas ***"]
[]
[{"$f":"COUNTIF(A5:A108,FALSE)","v":13},"Laikotarpiai","Reikšmės",{"$nulls":3},{"$f":"COUNTIF(H5:H28,\">\"&0)","v":4},"Laikotarpiai",null,"Reikšmės"]
[null,"Savaitė",null,null,true,null,null,"Mėnuo","MP"]
[{"$f":"IF(('Svorio sekmo priemonės diagrama'!C26=0)*('Svorio sekmo priemonės diagrama'!C25=0),TRUE)","v":false},{"$f":"IF(A5,0,IF('Svorio sekmo priemonės diagrama'!B26=0,'Svorio sekmo priemonės diagrama'!B25+5,'Svorio sekmo priemonės diagrama'!B26))","v":"2012-11-30"},{"$f":"'Svorio sekmo priemonės diagrama'!C26","v":176},{"$f":"MIN(DiagramosLaikotarpiai)","v":"2012-11-30"},{"$f":"IF($E$4,SiekiamasSvoris,NA())","v":172},null,null,{"$f":"DATE(YEAR(B5),MONTH(B5),1)","v":"2012-11-01"},{"$f":"EOMONTH(H5,0)","v":"2012-11-30"},{"$f":"IFERROR(AVERAGEIFS(SvorioLentelė[SVORIS],SvorioLentelė[DATA],\">=\"&H5,SvorioLentelė[DATA],\"<=\"&I5),NA())","v":176}]
[{"$f":"IF(('Svorio sekmo priemonės diagrama'!C27=0)*('Svorio sekmo priemonės diagrama'!C26=0),TRUE)","v":false},{"$f":"IF(A6,0,IF('Svorio sekmo priemonės diagrama'!B27=0,'Svorio sekmo priemonės diagrama'!B26+5,'Svorio sekmo priemonės diagrama'!B27))","v":"2012-12-07"},{"$f":"'Svorio sekmo priemonės diagrama'!C27","v":176},{"$f":"MAX(DiagramosLaikotarpiai)","v":"2013-02-22"},172,null,null,{"$f":"IF(I5+1>MAX($B:$B),NA(),I5+1)","v":"2012-12-01"},"2012-12-31",{"$f":"IFERROR(AVERAGEIFS(SvorioLentelė[SVORIS],SvorioLentelė[DATA],\">=\"&H6,SvorioLentelė[DATA],\"<=\"&I6),NA())","v":176.55}]
[{"$f":"IF(('Svorio sekmo priemonės diagrama'!C28=0)*('Svorio sekmo priemonės diagrama'!C27=0),TRUE)","v":false},{"$f":"IF(A7,0,IF('Svorio sekmo priemonės diagrama'!B28=0,'Svorio sekmo priemonės diagrama'!B27+5,'Svorio sekmo priemonės diagrama'!B28))","v":"2012-12-14"},{"$f":"'Svorio sekmo priemonės diagrama'!C28","v":177.6},{"$nulls":4},{"$f":"IF(I6+1>MAX($B:$B),NA(),I6+1)","v":"2013-01-01"},"2013-01-31",{"$f":"IFERROR(AVERAGEIFS(SvorioLentelė[SVORIS],SvorioLentelė[DATA],\">=\"&H7,SvorioLentelė[DATA],\"<=\"&I7),NA())","v":172.75}]
[{"$f":"IF(('Svorio sekmo priemonės diagrama'!C29=0)*('Svorio sekmo priemonės diagrama'!C28=0),TRUE)","v":false},{"$f":"IF(A8,0,IF('Svorio sekmo priemonės diagrama'!B29=0,'Svorio sekmo priemonės diagrama'!B28+5,'Svorio sekmo priemonės diagrama'!B29))","v":"2012-12-21"},{"$f":"'Svorio sekmo priemonės diagrama'!C29","v":176.5},{"$nulls":4},"2013-02-01","2013-02-28",{"$f":"IFERROR(AVERAGEIFS(SvorioLentelė[SVORIS],SvorioLentelė[DATA],\">=\"&H8,SvorioLentelė[DATA],\"<=\"&I8),NA())","v":174}]
[{"$f":"IF(('Svorio sekmo priemonės diagrama'!C30=0)*('Svorio sekmo priemonės diagrama'!C29=0),TRUE)","v":false},{"$f":"IF(A9,0,IF('Svorio sekmo priemonės diagrama'!B30=0,'Svorio sekmo priemonės diagrama'!B29+5,'Svorio sekmo priemonės diagrama'!B30))","v":"2012-12-28"},{"$f":"'Svorio sekmo priemonės diagrama'!C30","v":176.1},{"$nulls":4},{"$error":"#N/A"},{"$error":"#N/A"},{"$f":"IFERROR(AVERAGEIFS(SvorioLentelė[SVORIS],SvorioLentelė[DATA],\">=\"&H9,SvorioLentelė[DATA],\"<=\"&I9),NA())","v":{"$error":"#N/A"}}]
[{"$f":"IF(('Svorio sekmo priemonės diagrama'!C31=0)*('Svorio sekmo priemonės diagrama'!C30=0),TRUE)","v":false},{"$f":"IF(A10,0,IF('Svorio sekmo priemonės diagrama'!B31=0,'Svorio sekmo priemonės diagrama'!B30+5,'Svorio sekmo priemonės diagrama'!B31))","v":"2013-01-04"},{"$f":"'Svorio sekmo priemonės diagrama'!C31","v":174},{"$nulls":4},{"$error":"#N/A"},{"$error":"#N/A"},{"$f":"IFERROR(AVERAGEIFS(SvorioLentelė[SVORIS],SvorioLentelė[DATA],\">=\"&H10,SvorioLentelė[DATA],\"<=\"&I10),NA())","v":{"$error":"#N/A"}}]
[{"$f":"IF(('Svorio sekmo priemonės diagrama'!C32=0)*('Svorio sekmo priemonės diagrama'!C31=0),TRUE)","v":false},{"$f":"IF(A11,0,IF('Svorio sekmo priemonės diagrama'!B32=0,'Svorio sekmo priemonės diagrama'!B31+5,'Svorio sekmo priemonės diagrama'!B32))","v":"2013-01-11"},{"$f":"'Svorio sekmo priemonės diagrama'!C32","v":173},{"$nulls":4},{"$error":"#N/A"},{"$error":"#N/A"},{"$f":"IFERROR(AVERAGEIFS(SvorioLentelė[SVORIS],SvorioLentelė[DATA],\">=\"&H11,SvorioLentelė[DATA],\"<=\"&I11),NA())","v":{"$error":"#N/A"}},{"$nulls":6},{"$f":"MAX($B:$B)","v":"2013-02-22"}]
[{"$f":"IF(('Svorio sekmo priemonės diagrama'!C33=0)*('Svorio sekmo priemonės diagrama'!C32=0),TRUE)","v":false},{"$f":"IF(A12,0,IF('Svorio sekmo priemonės diagrama'!B33=0,'Svorio sekmo priemonės diagrama'!B32+5,'Svorio sekmo priemonės diagrama'!B33))","v":"2013-01-18"},{"$f":"'Svorio sekmo priemonės diagrama'!C33","v":172},{"$nulls":4},{"$error":"#N/A"},{"$error":"#N/A"},{"$f":"IFERROR(AVERAGEIFS(SvorioLentelė[SVORIS],SvorioLentelė[DATA],\">=\"&H12,SvorioLentelė[DATA],\"<=\"&I12),NA())","v":{"$error":"#N/A"}}]
[{"$f":"IF(('Svorio sekmo priemonės diagrama'!C34=0)*('Svorio sekmo priemonės diagrama'!C33=0),TRUE)","v":false},{"$f":"IF(A13,0,IF('Svorio sekmo priemonės diagrama'!B34=0,'Svorio sekmo priemonės diagrama'!B33+5,'Svorio sekmo priemonės diagrama'!B34))","v":"2013-01-25"},{"$f":"'Svorio sekmo priemonės diagrama'!C34","v":172},{"$nulls":4},{"$error":"#N/A"},{"$error":"#N/A"},{"$f":"IFERROR(AVERAGEIFS(SvorioLentelė[SVORIS],SvorioLentelė[DATA],\">=\"&H13,SvorioLentelė[DATA],\"<=\"&I13),NA())","v":{"$error":"#N/A"}}]
[{"$f":"IF(('Svorio sekmo priemonės diagrama'!C35=0)*('Svorio sekmo priemonės diagrama'!C34=0),TRUE)","v":false},{"$f":"IF(A14,0,IF('Svorio sekmo priemonės diagrama'!B35=0,'Svorio sekmo priemonės diagrama'!B34+5,'Svorio sekmo priemonės diagrama'!B35))","v":"2013-02-01"},{"$f":"'Svorio sekmo priemonės diagrama'!C35","v":173},{"$nulls":4},{"$error":"#N/A"},{"$error":"#N/A"},{"$f":"IFERROR(AVERAGEIFS(SvorioLentelė[SVORIS],SvorioLentelė[DATA],\">=\"&H14,SvorioLentelė[DATA],\"<=\"&I14),NA())","v":{"$error":"#N/A"}}]
[{"$f":"IF(('Svorio sekmo priemonės diagrama'!C36=0)*('Svorio sekmo priemonės diagrama'!C35=0),TRUE)","v":false},{"$f":"IF(A15,0,IF('Svorio sekmo priemonės diagrama'!B36=0,'Svorio sekmo priemonės diagrama'!B35+5,'Svorio sekmo priemonės diagrama'!B36))","v":"2013-02-08"},{"$f":"'Svorio sekmo priemonės diagrama'!C36","v":174},{"$nulls":4},{"$error":"#N/A"},{"$error":"#N/A"},{"$f":"IFERROR(AVERAGEIFS(SvorioLentelė[SVORIS],SvorioLentelė[DATA],\">=\"&H15,SvorioLentelė[DATA],\"<=\"&I15),NA())","v":{"$error":"#N/A"}}]
[{"$f":"IF(('Svorio sekmo priemonės diagrama'!C37=0)*('Svorio sekmo priemonės diagrama'!C36=0),TRUE)","v":false},{"$f":"IF(A16,0,IF('Svorio sekmo priemonės diagrama'!B37=0,'Svorio sekmo priemonės diagrama'!B36+5,'Svorio sekmo priemonės diagrama'!B37))","v":"2013-02-15"},{"$f":"'Svorio sekmo priemonės diagrama'!C37","v":175},{"$nulls":4},{"$error":"#N/A"},{"$error":"#N/A"},{"$f":"IFERROR(AVERAGEIFS(SvorioLentelė[SVORIS],SvorioLentelė[DATA],\">=\"&H16,SvorioLentelė[DATA],\"<=\"&I16),NA())","v":{"$error":"#N/A"}}]
[{"$f":"IF(('Svorio sekmo priemonės diagrama'!C38=0)*('Svorio sekmo priemonės diagrama'!C37=0),TRUE)","v":false},{"$f":"IF(A17,0,IF('Svorio sekmo priemonės diagrama'!B38=0,'Svorio sekmo priemonės diagrama'!B37+5,'Svorio sekmo priemonės diagrama'!B38))","v":"2013-02-22"},{"$f":"'Svorio sekmo priemonės diagrama'!C38","v":0},{"$nulls":4},{"$error":"#N/A"},{"$error":"#N/A"},{"$f":"IFERROR(AVERAGEIFS(SvorioLentelė[SVORIS],SvorioLentelė[DATA],\">=\"&H17,SvorioLentelė[DATA],\"<=\"&I17),NA())","v":{"$error":"#N/A"}}]
[{"$f":"IF(('Svorio sekmo priemonės diagrama'!C39=0)*('Svorio sekmo priemonės diagrama'!C38=0),TRUE)","v":true},{"$f":"IF(A18,0,IF('Svorio sekmo priemonės diagrama'!B39=0,'Svorio sekmo priemonės diagrama'!B38+5,'Svorio sekmo priemonės diagrama'!B39))","v":"00:00:00"},{"$f":"'Svorio sekmo priemonės diagrama'!C39","v":0},{"$nulls":4},{"$error":"#N/A"},{"$error":"#N/A"},{"$f":"IFERROR(AVERAGEIFS(SvorioLentelė[SVORIS],SvorioLentelė[DATA],\">=\"&H18,SvorioLentelė[DATA],\"<=\"&I18),NA())","v":{"$error":"#N/A"}}]
[{"$f":"IF(('Svorio sekmo priemonės diagrama'!C40=0)*('Svorio sekmo priemonės diagrama'!C39=0),TRUE)","v":true},{"$f":"IF(A19,0,IF('Svorio sekmo priemonės diagrama'!B40=0,'Svorio sekmo priemonės diagrama'!B39+5,'Svorio sekmo priemonės diagrama'!B40))","v":"00:00:00"},{"$f":"'Svorio sekmo priemonės diagrama'!C40","v":0},{"$nulls":4},{"$error":"#N/A"},{"$error":"#N/A"},{"$f":"IFERROR(AVERAGEIFS(SvorioLentelė[SVORIS],SvorioLentelė[DATA],\">=\"&H19,SvorioLentelė[DATA],\"<=\"&I19),NA())","v":{"$error":"#N/A"}}]
[{"$f":"IF(('Svorio sekmo priemonės diagrama'!C41=0)*('Svorio sekmo priemonės diagrama'!C40=0),TRUE)","v":true},{"$f":"IF(A20,0,IF('Svorio sekmo priemonės diagrama'!B41=0,'Svorio sekmo priemonės diagrama'!B40+5,'Svorio sekmo priemonės diagrama'!B41))","v":"00:00:00"},{"$f":"'Svorio sekmo priemonės diagrama'!C41","v":0},{"$nulls":4},{"$error":"#N/A"},{"$error":"#N/A"},{"$f":"IFERROR(AVERAGEIFS(SvorioLentelė[SVORIS],SvorioLentelė[DATA],\">=\"&H20,SvorioLentelė[DATA],\"<=\"&I20),NA())","v":{"$error":"#N/A"}}]
[{"$f":"IF(('Svorio sekmo priemonės diagrama'!C42=0)*('Svorio sekmo priemonės diagrama'!C41=0),TRUE)","v":true},{"$f":"IF(A21,0,IF('Svorio sekmo priemonės diagrama'!B42=0,'Svorio sekmo priemonės diagrama'!B41+5,'Svorio sekmo priemonės diagrama'!B42))","v":"00:00:00"},{"$f":"'Svorio sekmo priemonės diagrama'!C42","v":0},{"$nulls":4},{"$error":"#N/A"},{"$error":"#N/A"},{"$f":"IFERROR(AVERAGEIFS(SvorioLentelė[SVORIS],SvorioLentelė[DATA],\">=\"&H21,SvorioLentelė[DATA],\"<=\"&I21),NA())","v":{"$error":"#N/A"}}]
[{"$f":"IF(('Svorio sekmo priemonės diagrama'!C43=0)*('Svorio sekmo priemonės diagrama'!C42=0),TRUE)","v":true},{"$f":"IF(A22,0,IF('Svorio sekmo priemonės diagrama'!B43=0,'Svorio sekmo priemonės diagrama'!B42+5,'Svorio sekmo priemonės diagrama'!B43))","v":"00:00:00"},{"$f":"'Svorio sekmo priemonės diagrama'!C43","v":0},{"$nulls":4},{"$error":"#N/A"},{"$error":"#N/A"},{"$f":"IFERROR(AVERAGEIFS(SvorioLentelė[SVORIS],SvorioLentelė[DATA],\">=\"&H22,SvorioLentelė[DATA],\"<=\"&I22),NA())","v":{"$error":"#N/A"}}]
[{"$f":"IF(('Svorio sekmo priemonės diagrama'!C44=0)*('Svorio sekmo priemonės diagrama'!C43=0),TRUE)","v":true},{"$f":"IF(A23,0,IF('Svorio sekmo priemonės diagrama'!B44=0,'Svorio sekmo priemonės diagrama'!B43+5,'Svorio sekmo priemonės diagrama'!B44))","v":"00:00:00"},{"$f":"'Svorio sekmo priemonės diagrama'!C44","v":0},{"$nulls":4},{"$error":"#N/A"},{"$error":"#N/A"},{"$f":"IFERROR(AVERAGEIFS(SvorioLentelė[SVORIS],SvorioLentelė[DATA],\">=\"&H23,SvorioLentelė[DATA],\"<=\"&I23),NA())","v":{"$error":"#N/A"}}]
[{"$f":"IF(('Svorio sekmo priemonės diagrama'!C45=0)*('Svorio sekmo priemonės diagrama'!C44=0),TRUE)","v":true},{"$f":"IF(A24,0,IF('Svorio sekmo priemonės diagrama'!B45=0,'Svorio sekmo priemonės diagrama'!B44+5,'Svorio sekmo priemonės diagrama'!B45))","v":"00:00:00"},{"$f":"'Svorio sekmo priemonės diagrama'!C45","v":0},{"$nulls":4},{"$error":"#N/A"},{"$error":"#N/A"},{"$f":"IFERROR(AVERAGEIFS(SvorioLentelė[SVORIS],SvorioLentelė[DATA],\">=\"&H24,SvorioLentelė[DATA],\"<=\"&I24),NA())","v":{"$error":"#N/A"}}]
[{"$f":"IF(('Svorio sekmo priemonės diagrama'!C46=0)*('Svorio sekmo priemonės diagrama'!C45=0),TRUE)","v":true},{"$f":"IF(A25,0,IF('Svorio sekmo priemonės diagrama'!B46=0,'Svorio sekmo priemonės diagrama'!B45+5,'Svorio sekmo priemonės diagrama'!B46))","v":"00:00:00"},{"$f":"'Svorio sekmo priemonės diagrama'!C46","v":0},{"$nulls":4},{"$error":"#N/A"},{"$error":"#N/A"},{"$f":"IFERROR(AVERAGEIFS(SvorioLentelė[SVORIS],SvorioLentelė[DATA],\">=\"&H25,SvorioLentelė[DATA],\"<=\"&I25),NA())","v":{"$error":"#N/A"}}]
[{"$f":"IF(('Svorio sekmo priemonės diagrama'!C47=0)*('Svorio sekmo priemonės diagrama'!C46=0),TRUE)","v":true},{"$f":"IF(A26,0,IF('Svorio sekmo priemonės diagrama'!B47=0,'Svorio sekmo priemonės diagrama'!B46+5,'Svorio sekmo priemonės diagrama'!B47))","v":"00:00:00"},{"$f":"'Svorio sekmo priemonės diagrama'!C47","v":0},{"$nulls":4},{"$error":"#N/A"},{"$error":"#N/A"},{"$f":"IFERROR(AVERAGEIFS(SvorioLentelė[SVORIS],SvorioLentelė[DATA],\">=\"&H26,SvorioLentelė[DATA],\"<=\"&I26),NA())","v":{"$error":"#N/A"}}]
[{"$f":"IF(('Svorio sekmo priemonės diagrama'!C48=0)*('Svorio sekmo priemonės diagrama'!C47=0),TRUE)","v":true},{"$f":"IF(A27,0,IF('Svorio sekmo priemonės diagrama'!B48=0,'Svorio sekmo priemonės diagrama'!B47+5,'Svorio sekmo priemonės diagrama'!B48))","v":"00:00:00"},{"$f":"'Svorio sekmo priemonės diagrama'!C48","v":0},{"$nulls":4},{"$error":"#N/A"},{"$error":"#N/A"},{"$f":"IFERROR(AVERAGEIFS(SvorioLentelė[SVORIS],SvorioLentelė[DATA],\">=\"&H27,SvorioLentelė[DATA],\"<=\"&I27),NA())","v":{"$error":"#N/A"}}]
[{"$f":"IF(('Svorio sekmo priemonės diagrama'!C49=0)*('Svorio sekmo priemonės diagrama'!C48=0),TRUE)","v":true},{"$f":"IF(A28,0,IF('Svorio sekmo priemonės diagrama'!B49=0,'Svorio sekmo priemonės diagrama'!B48+5,'Svorio sekmo priemonės diagrama'!B49))","v":"00:00:00"},{"$f":"'Svorio sekmo priemonės diagrama'!C49","v":0},{"$nulls":4},{"$error":"#N/A"},{"$error":"#N/A"},{"$f":"IFERROR(AVERAGEIFS(SvorioLentelė[SVORIS],SvorioLentelė[DATA],\">=\"&H28,SvorioLentelė[DATA],\"<=\"&I28),NA())","v":{"$error":"#N/A"}}]
[{"$f":"IF(('Svorio sekmo priemonės diagrama'!C50=0)*('Svorio sekmo priemonės diagrama'!C49=0),TRUE)","v":true},{"$f":"IF(A29,0,IF('Svorio sekmo priemonės diagrama'!B50=0,'Svorio sekmo priemonės diagrama'!B49+5,'Svorio sekmo priemonės diagrama'!B50))","v":"00:00:00"},{"$f":"'Svorio sekmo priemonės diagrama'!C50","v":0}]
[{"$f":"IF(('Svorio sekmo priemonės diagrama'!C51=0)*('Svorio sekmo priemonės diagrama'!C50=0),TRUE)","v":true},{"$f":"IF(A30,0,IF('Svorio sekmo priemonės diagrama'!B51=0,'Svorio sekmo priemonės diagrama'!B50+5,'Svorio sekmo priemonės diagrama'!B51))","v":"00:00:00"},{"$f":"'Svorio sekmo priemonės diagrama'!C51","v":0}]
[{"$f":"IF(('Svorio sekmo priemonės diagrama'!C52=0)*('Svorio sekmo priemonės diagrama'!C51=0),TRUE)","v":true},{"$f":"IF(A31,0,IF('Svorio sekmo priemonės diagrama'!B52=0,'Svorio sekmo priemonės diagrama'!B51+5,'Svorio sekmo priemonės diagrama'!B52))","v":"00:00:00"},{"$f":"'Svorio sekmo priemonės diagrama'!C52","v":0}]
[{"$f":"IF(('Svorio sekmo priemonės diagrama'!C53=0)*('Svorio sekmo priemonės diagrama'!C52=0),TRUE)","v":true},{"$f":"IF(A32,0,IF('Svorio sekmo priemonės diagrama'!B53=0,'Svorio sekmo priemonės diagrama'!B52+5,'Svorio sekmo priemonės diagrama'!B53))","v":"00:00:00"},{"$f":"'Svorio sekmo priemonės diagrama'!C53","v":0}]
[{"$f":"IF(('Svorio sekmo priemonės diagrama'!C54=0)*('Svorio sekmo priemonės diagrama'!C53=0),TRUE)","v":true},{"$f":"IF(A33,0,IF('Svorio sekmo priemonės diagrama'!B54=0,'Svorio sekmo priemonės diagrama'!B53+5,'Svorio sekmo priemonės diagrama'!B54))","v":"00:00:00"},{"$f":"'Svorio sekmo priemonės diagrama'!C54","v":0}]
[{"$f":"IF(('Svorio sekmo priemonės diagrama'!C55=0)*('Svorio sekmo priemonės diagrama'!C54=0),TRUE)","v":true},{"$f":"IF(A34,0,IF('Svorio sekmo priemonės diagrama'!B55=0,'Svorio sekmo priemonės diagrama'!B54+5,'Svorio sekmo priemonės diagrama'!B55))","v":"00:00:00"},{"$f":"'Svorio sekmo priemonės diagrama'!C55","v":0}]
[{"$f":"IF(('Svorio sekmo priemonės diagrama'!C56=0)*('Svorio sekmo priemonės diagrama'!C55=0),TRUE)","v":true},{"$f":"IF(A35,0,IF('Svorio sekmo priemonės diagrama'!B56=0,'Svorio sekmo priemonės diagrama'!B55+5,'Svorio sekmo priemonės diagrama'!B56))","v":"00:00:00"},{"$f":"'Svorio sekmo priemonės diagrama'!C56","v":0}]
[{"$f":"IF(('Svorio sekmo priemonės diagrama'!C57=0)*('Svorio sekmo priemonės diagrama'!C56=0),TRUE)","v":true},{"$f":"IF(A36,0,IF('Svorio sekmo priemonės diagrama'!B57=0,'Svorio sekmo priemonės diagrama'!B56+5,'Svorio sekmo priemonės diagrama'!B57))","v":"00:00:00"},{"$f":"'Svorio sekmo priemonės diagrama'!C57","v":0}]
[{"$f":"IF(('Svorio sekmo priemonės diagrama'!C58=0)*('Svorio sekmo priemonės diagrama'!C57=0),TRUE)","v":true},{"$f":"IF(A37,0,IF('Svorio sekmo priemonės diagrama'!B58=0,'Svorio sekmo priemonės diagrama'!B57+5,'Svorio sekmo priemonės diagrama'!B58))","v":"00:00:00"},{"$f":"'Svorio sekmo priemonės diagrama'!C58","v":0}]
[{"$f":"IF(('Svorio sekmo priemonės diagrama'!C59=0)*('Svorio sekmo priemonės diagrama'!C58=0),TRUE)","v":true},{"$f":"IF(A38,0,IF('Svorio sekmo priemonės diagrama'!B59=0,'Svorio sekmo priemonės diagrama'!B58+5,'Svorio sekmo priemonės diagrama'!B59))","v":"00:00:00"},{"$f":"'Svorio sekmo priemonės diagrama'!C59","v":0}]
[{"$f":"IF(('Svorio sekmo priemonės diagrama'!C60=0)*('Svorio sekmo priemonės diagrama'!C59=0),TRUE)","v":true},{"$f":"IF(A39,0,IF('Svorio sekmo priemonės diagrama'!B60=0,'Svorio sekmo priemonės diagrama'!B59+5,'Svorio sekmo priemonės diagrama'!B60))","v":"00:00:00"},{"$f":"'Svorio sekmo priemonės diagrama'!C60","v":0}]
[{"$f":"IF(('Svorio sekmo priemonės diagrama'!C61=0)*('Svorio sekmo priemonės diagrama'!C60=0),TRUE)","v":true},{"$f":"IF(A40,0,IF('Svorio sekmo priemonės diagrama'!B61=0,'Svorio sekmo priemonės diagrama'!B60+5,'Svorio sekmo priemonės diagrama'!B61))","v":"00:00:00"},{"$f":"'Svorio sekmo priemonės diagrama'!C61","v":0}]
[{"$f":"IF(('Svorio sekmo priemonės diagrama'!C62=0)*('Svorio sekmo priemonės diagrama'!C61=0),TRUE)","v":true},{"$f":"IF(A41,0,IF('Svorio sekmo priemonės diagrama'!B62=0,'Svorio sekmo priemonės diagrama'!B61+5,'Svorio sekmo priemonės diagrama'!B62))","v":"00:00:00"},{"$f":"'Svorio sekmo priemonės diagrama'!C62","v":0}]
[{"$f":"IF(('Svorio sekmo priemonės diagrama'!C63=0)*('Svorio sekmo priemonės diagrama'!C62=0),TRUE)","v":true},{"$f":"IF(A42,0,IF('Svorio sekmo priemonės diagrama'!B63=0,'Svorio sekmo priemonės diagrama'!B62+5,'Svorio sekmo priemonės diagrama'!B63))","v":"00:00:00"},{"$f":"'Svorio sekmo priemonės diagrama'!C63","v":0}]
[{"$f":"IF(('Svorio sekmo priemonės diagrama'!C64=0)*('Svorio sekmo priemonės diagrama'!C63=0),TRUE)","v":true},{"$f":"IF(A43,0,IF('Svorio sekmo priemonės diagrama'!B64=0,'Svorio sekmo priemonės diagrama'!B63+5,'Svorio sekmo priemonės diagrama'!B64))","v":"00:00:00"},{"$f":"'Svorio sekmo priemonės diagrama'!C64","v":0}]
[{"$f":"IF(('Svorio sekmo priemonės diagrama'!C65=0)*('Svorio sekmo priemonės diagrama'!C64=0),TRUE)","v":true},{"$f":"IF(A44,0,IF('Svorio sekmo priemonės diagrama'!B65=0,'Svorio sekmo priemonės diagrama'!B64+5,'Svorio sekmo priemonės diagrama'!B65))","v":"00:00:00"},{"$f":"'Svorio sekmo priemonės diagrama'!C65","v":0}]
[{"$f":"IF(('Svorio sekmo priemonės diagrama'!C66=0)*('Svorio sekmo priemonės diagrama'!C65=0),TRUE)","v":true},{"$f":"IF(A45,0,IF('Svorio sekmo priemonės diagrama'!B66=0,'Svorio sekmo priemonės diagrama'!B65+5,'Svorio sekmo priemonės diagrama'!B66))","v":"00:00:00"},{"$f":"'Svorio sekmo priemonės diagrama'!C66","v":0}]
[{"$f":"IF(('Svorio sekmo priemonės diagrama'!C67=0)*('Svorio sekmo priemonės diagrama'!C66=0),TRUE)","v":true},{"$f":"IF(A46,0,IF('Svorio sekmo priemonės diagrama'!B67=0,'Svorio sekmo priemonės diagrama'!B66+5,'Svorio sekmo priemonės diagrama'!B67))","v":"00:00:00"},{"$f":"'Svorio sekmo priemonės diagrama'!C67","v":0}]
[{"$f":"IF(('Svorio sekmo priemonės diagrama'!C68=0)*('Svorio sekmo priemonės diagrama'!C67=0),TRUE)","v":true},{"$f":"IF(A47,0,IF('Svorio sekmo priemonės diagrama'!B68=0,'Svorio sekmo priemonės diagrama'!B67+5,'Svorio sekmo priemonės diagrama'!B68))","v":"00:00:00"},{"$f":"'Svorio sekmo priemonės diagrama'!C68","v":0}]
[{"$f":"IF(('Svorio sekmo priemonės diagrama'!C69=0)*('Svorio sekmo priemonės diagrama'!C68=0),TRUE)","v":true},{"$f":"IF(A48,0,IF('Svorio sekmo priemonės diagrama'!B69=0,'Svorio sekmo priemonės diagrama'!B68+5,'Svorio sekmo priemonės diagrama'!B69))","v":"00:00:00"},{"$f":"'Svorio sekmo priemonės diagrama'!C69","v":0}]
[{"$f":"IF(('Svorio sekmo priemonės diagrama'!C70=0)*('Svorio sekmo priemonės diagrama'!C69=0),TRUE)","v":true},{"$f":"IF(A49,0,IF('Svorio sekmo priemonės diagrama'!B70=0,'Svorio sekmo priemonės diagrama'!B69+5,'Svorio sekmo priemonės diagrama'!B70))","v":"00:00:00"},{"$f":"'Svorio sekmo priemonės diagrama'!C70","v":0}]
[{"$f":"IF(('Svorio sekmo priemonės diagrama'!C71=0)*('Svorio sekmo priemonės diagrama'!C70=0),TRUE)","v":true},{"$f":"IF(A50,0,IF('Svorio sekmo priemonės diagrama'!B71=0,'Svorio sekmo priemonės diagrama'!B70+5,'Svorio sekmo priemonės diagrama'!B71))","v":"00:00:00"},{"$f":"'Svorio sekmo priemonės diagrama'!C71","v":0}]
[{"$f":"IF(('Svorio sekmo priemonės diagrama'!C72=0)*('Svorio sekmo priemonės diagrama'!C71=0),TRUE)","v":true},{"$f":"IF(A51,0,IF('Svorio sekmo priemonės diagrama'!B72=0,'Svorio sekmo priemonės diagrama'!B71+5,'Svorio sekmo priemonės diagrama'!B72))","v":"00:00:00"},{"$f":"'Svorio sekmo priemonės diagrama'!C72","v":0}]
[{"$f":"IF(('Svorio sekmo priemonės diagrama'!C73=0)*('Svorio sekmo priemonės diagrama'!C72=0),TRUE)","v":true},{"$f":"IF(A52,0,IF('Svorio sekmo priemonės diagrama'!B73=0,'Svorio sekmo priemonės diagrama'!B72+5,'Svorio sekmo priemonės diagrama'!B73))","v":"00:00:00"},{"$f":"'Svorio sekmo priemonės diagrama'!C73","v":0}]
[{"$f":"IF(('Svorio sekmo priemonės diagrama'!C74=0)*('Svorio sekmo priemonės diagrama'!C73=0),TRUE)","v":true},{"$f":"IF(A53,0,IF('Svorio sekmo priemonės diagrama'!B74=0,'Svorio sekmo priemonės diagrama'!B73+5,'Svorio sekmo priemonės diagrama'!B74))","v":"00:00:00"},{"$f":"'Svorio sekmo priemonės diagrama'!C74","v":0}]
[{"$f":"IF(('Svorio sekmo priemonės diagrama'!C75=0)*('Svorio sekmo priemonės diagrama'!C74=0),TRUE)","v":true},{"$f":"IF(A54,0,IF('Svorio sekmo priemonės diagrama'!B75=0,'Svorio sekmo priemonės diagrama'!B74+5,'Svorio sekmo priemonės diagrama'!B75))","v":"00:00:00"},{"$f":"'Svorio sekmo priemonės diagrama'!C75","v":0}]
[{"$f":"IF(('Svorio sekmo priemonės diagrama'!C76=0)*('Svorio sekmo priemonės diagrama'!C75=0),TRUE)","v":true},{"$f":"IF(A55,0,IF('Svorio sekmo priemonės diagrama'!B76=0,'Svorio sekmo priemonės diagrama'!B75+5,'Svorio sekmo priemonės diagrama'!B76))","v":"00:00:00"},{"$f":"'Svorio sekmo priemonės diagrama'!C76","v":0}]
[{"$f":"IF(('Svorio sekmo priemonės diagrama'!C77=0)*('Svorio sekmo priemonės diagrama'!C76=0),TRUE)","v":true},{"$f":"IF(A56,0,IF('Svorio sekmo priemonės diagrama'!B77=0,'Svorio sekmo priemonės diagrama'!B76+5,'Svorio sekmo priemonės diagrama'!B77))","v":"00:00:00"},{"$f":"'Svorio sekmo priemonės diagrama'!C77","v":0}]
[{"$f":"IF(('Svorio sekmo priemonės diagrama'!C78=0)*('Svorio sekmo priemonės diagrama'!C77=0),TRUE)","v":true},{"$f":"IF(A57,0,IF('Svorio sekmo priemonės diagrama'!B78=0,'Svorio sekmo priemonės diagrama'!B77+5,'Svorio sekmo priemonės diagrama'!B78))","v":"00:00:00"},{"$f":"'Svorio sekmo priemonės diagrama'!C78","v":0}]
[{"$f":"IF(('Svorio sekmo priemonės diagrama'!C79=0)*('Svorio sekmo priemonės diagrama'!C78=0),TRUE)","v":true},{"$f":"IF(A58,0,IF('Svorio sekmo priemonės diagrama'!B79=0,'Svorio sekmo priemonės diagrama'!B78+5,'Svorio sekmo priemonės diagrama'!B79))","v":"00:00:00"},{"$f":"'Svorio sekmo priemonės diagrama'!C79","v":0}]
[{"$f":"IF(('Svorio sekmo priemonės diagrama'!C80=0)*('Svorio sekmo priemonės diagrama'!C79=0),TRUE)","v":true},{"$f":"IF(A59,0,IF('Svorio sekmo priemonės diagrama'!B80=0,'Svorio sekmo priemonės diagrama'!B79+5,'Svorio sekmo priemonės diagrama'!B80))","v":"00:00:00"},{"$f":"'Svorio sekmo priemonės diagrama'!C80","v":0}]
[{"$f":"IF(('Svorio sekmo priemonės diagrama'!C81=0)*('Svorio sekmo priemonės diagrama'!C80=0),TRUE)","v":true},{"$f":"IF(A60,0,IF('Svorio sekmo priemonės diagrama'!B81=0,'Svorio sekmo priemonės diagrama'!B80+5,'Svorio sekmo priemonės diagrama'!B81))","v":"00:00:00"},{"$f":"'Svorio sekmo priemonės diagrama'!C81","v":0}]
[{"$f":"IF(('Svorio sekmo priemonės diagrama'!C82=0)*('Svorio sekmo priemonės diagrama'!C81=0),TRUE)","v":true},{"$f":"IF(A61,0,IF('Svorio sekmo priemonės diagrama'!B82=0,'Svorio sekmo priemonės diagrama'!B81+5,'Svorio sekmo priemonės diagrama'!B82))","v":"00:00:00"},{"$f":"'Svorio sekmo priemonės diagrama'!C82","v":0}]
[{"$f":"IF(('Svorio sekmo priemonės diagrama'!C83=0)*('Svorio sekmo priemonės diagrama'!C82=0),TRUE)","v":true},{"$f":"IF(A62,0,IF('Svorio sekmo priemonės diagrama'!B83=0,'Svorio sekmo priemonės diagrama'!B82+5,'Svorio sekmo priemonės diagrama'!B83))","v":"00:00:00"},{"$f":"'Svorio sekmo priemonės diagrama'!C83","v":0}]
[{"$f":"IF(('Svorio sekmo priemonės diagrama'!C84=0)*('Svorio sekmo priemonės diagrama'!C83=0),TRUE)","v":true},{"$f":"IF(A63,0,IF('Svorio sekmo priemonės diagrama'!B84=0,'Svorio sekmo priemonės diagrama'!B83+5,'Svorio sekmo priemonės diagrama'!B84))","v":"00:00:00"},{"$f":"'Svorio sekmo priemonės diagrama'!C84","v":0}]
[{"$f":"IF(('Svorio sekmo priemonės diagrama'!C85=0)*('Svorio sekmo priemonės diagrama'!C84=0),TRUE)","v":true},{"$f":"IF(A64,0,IF('Svorio sekmo priemonės diagrama'!B85=0,'Svorio sekmo priemonės diagrama'!B84+5,'Svorio sekmo priemonės diagrama'!B85))","v":"00:00:00"},{"$f":"'Svorio sekmo priemonės diagrama'!C85","v":0}]
[{"$f":"IF(('Svorio sekmo priemonės diagrama'!C86=0)*('Svorio sekmo priemonės diagrama'!C85=0),TRUE)","v":true},{"$f":"IF(A65,0,IF('Svorio sekmo priemonės diagrama'!B86=0,'Svorio sekmo priemonės diagrama'!B85+5,'Svorio sekmo priemonės diagrama'!B86))","v":"00:00:00"},{"$f":"'Svorio sekmo priemonės diagrama'!C86","v":0}]
[{"$f":"IF(('Svorio sekmo priemonės diagrama'!C87=0)*('Svorio sekmo priemonės diagrama'!C86=0),TRUE)","v":true},{"$f":"IF(A66,0,IF('Svorio sekmo priemonės diagrama'!B87=0,'Svorio sekmo priemonės diagrama'!B86+5,'Svorio sekmo priemonės diagrama'!B87))","v":"00:00:00"},{"$f":"'Svorio sekmo priemonės diagrama'!C87","v":0}]
[{"$f":"IF(('Svorio sekmo priemonės diagrama'!C88=0)*('Svorio sekmo priemonės diagrama'!C87=0),TRUE)","v":true},{"$f":"IF(A67,0,IF('Svorio sekmo priemonės diagrama'!B88=0,'Svorio sekmo priemonės diagrama'!B87+5,'Svorio sekmo priemonės diagrama'!B88))","v":"00:00:00"},{"$f":"'Svorio sekmo priemonės diagrama'!C88","v":0}]
[{"$f":"IF(('Svorio sekmo priemonės diagrama'!C89=0)*('Svorio sekmo priemonės diagrama'!C88=0),TRUE)","v":true},{"$f":"IF(A68,0,IF('Svorio sekmo priemonės diagrama'!B89=0,'Svorio sekmo priemonės diagrama'!B88+5,'Svorio sekmo priemonės diagrama'!B89))","v":"00:00:00"},{"$f":"'Svorio sekmo priemonės diagrama'!C89","v":0}]
[{"$f":"IF(('Svorio sekmo priemonės diagrama'!C90=0)*('Svorio sekmo priemonės diagrama'!C89=0),TRUE)","v":true},{"$f":"IF(A69,0,IF('Svorio sekmo priemonės diagrama'!B90=0,'Svorio sekmo priemonės diagrama'!B89+5,'Svorio sekmo priemonės diagrama'!B90))","v":"00:00:00"},{"$f":"'Svorio sekmo priemonės diagrama'!C90","v":0}]
[{"$f":"IF(('Svorio sekmo priemonės diagrama'!C91=0)*('Svorio sekmo priemonės diagrama'!C90=0),TRUE)","v":true},{"$f":"IF(A70,0,IF('Svorio sekmo priemonės diagrama'!B91=0,'Svorio sekmo priemonės diagrama'!B90+5,'Svorio sekmo priemonės diagrama'!B91))","v":"00:00:00"},{"$f":"'Svorio sekmo priemonės diagrama'!C91","v":0}]
[{"$f":"IF(('Svorio sekmo priemonės diagrama'!C92=0)*('Svorio sekmo priemonės diagrama'!C91=0),TRUE)","v":true},{"$f":"IF(A71,0,IF('Svorio sekmo priemonės diagrama'!B92=0,'Svorio sekmo priemonės diagrama'!B91+5,'Svorio sekmo priemonės diagrama'!B92))","v":"00:00:00"},{"$f":"'Svorio sekmo priemonės diagrama'!C92","v":0}]
[{"$f":"IF(('Svorio sekmo priemonės diagrama'!C93=0)*('Svorio sekmo priemonės diagrama'!C92=0),TRUE)","v":true},{"$f":"IF(A72,0,IF('Svorio sekmo priemonės diagrama'!B93=0,'Svorio sekmo priemonės diagrama'!B92+5,'Svorio sekmo priemonės diagrama'!B93))","v":"00:00:00"},{"$f":"'Svorio sekmo priemonės diagrama'!C93","v":0}]
[{"$f":"IF(('Svorio sekmo priemonės diagrama'!C94=0)*('Svorio sekmo priemonės diagrama'!C93=0),TRUE)","v":true},{"$f":"IF(A73,0,IF('Svorio sekmo priemonės diagrama'!B94=0,'Svorio sekmo priemonės diagrama'!B93+5,'Svorio sekmo priemonės diagrama'!B94))","v":"00:00:00"},{"$f":"'Svorio sekmo priemonės diagrama'!C94","v":0}]
[{"$f":"IF(('Svorio sekmo priemonės diagrama'!C95=0)*('Svorio sekmo priemonės diagrama'!C94=0),TRUE)","v":true},{"$f":"IF(A74,0,IF('Svorio sekmo priemonės diagrama'!B95=0,'Svorio sekmo priemonės diagrama'!B94+5,'Svorio sekmo priemonės diagrama'!B95))","v":"00:00:00"},{"$f":"'Svorio sekmo priemonės diagrama'!C95","v":0}]
[{"$f":"IF(('Svorio sekmo priemonės diagrama'!C96=0)*('Svorio sekmo priemonės diagrama'!C95=0),TRUE)","v":true},{"$f":"IF(A75,0,IF('Svorio sekmo priemonės diagrama'!B96=0,'Svorio sekmo priemonės diagrama'!B95+5,'Svorio sekmo priemonės diagrama'!B96))","v":"00:00:00"},{"$f":"'Svorio sekmo priemonės diagrama'!C96","v":0}]
[{"$f":"IF(('Svorio sekmo priemonės diagrama'!C97=0)*('Svorio sekmo priemonės diagrama'!C96=0),TRUE)","v":true},{"$f":"IF(A76,0,IF('Svorio sekmo priemonės diagrama'!B97=0,'Svorio sekmo priemonės diagrama'!B96+5,'Svorio sekmo priemonės diagrama'!B97))","v":"00:00:00"},{"$f":"'Svorio sekmo priemonės diagrama'!C97","v":0}]
[{"$f":"IF(('Svorio sekmo priemonės diagrama'!C98=0)*('Svorio sekmo priemonės diagrama'!C97=0),TRUE)","v":true},{"$f":"IF(A77,0,IF('Svorio sekmo priemonės diagrama'!B98=0,'Svorio sekmo priemonės diagrama'!B97+5,'Svorio sekmo priemonės diagrama'!B98))","v":"00:00:00"},{"$f":"'Svorio sekmo priemonės diagrama'!C98","v":0}]
[{"$f":"IF(('Svorio sekmo priemonės diagrama'!C99=0)*('Svorio sekmo priemonės diagrama'!C98=0),TRUE)","v":true},{"$f":"IF(A78,0,IF('Svorio sekmo priemonės diagrama'!B99=0,'Svorio sekmo priemonės diagrama'!B98+5,'Svorio sekmo priemonės diagrama'!B99))","v":"00:00:00"},{"$f":"'Svorio sekmo priemonės diagrama'!C99","v":0}]
[{"$f":"IF(('Svorio sekmo priemonės diagrama'!C100=0)*('Svorio sekmo priemonės diagrama'!C99=0),TRUE)","v":true},{"$f":"IF(A79,0,IF('Svorio sekmo priemonės diagrama'!B100=0,'Svorio sekmo priemonės diagrama'!B99+5,'Svorio sekmo priemonės diagrama'!B100))","v":"00:00:00"},{"$f":"'Svorio sekmo priemonės diagrama'!C100","v":0}]
[{"$f":"IF(('Svorio sekmo priemonės diagrama'!C101=0)*('Svorio sekmo priemonės diagrama'!C100=0),TRUE)","v":true},{"$f":"IF(A80,0,IF('Svorio sekmo priemonės diagrama'!B101=0,'Svorio sekmo priemonės diagrama'!B100+5,'Svorio sekmo priemonės diagrama'!B101))","v":"00:00:00"},{"$f":"'Svorio sekmo priemonės diagrama'!C101","v":0}]
[{"$f":"IF(('Svorio sekmo priemonės diagrama'!C102=0)*('Svorio sekmo priemonės diagrama'!C101=0),TRUE)","v":true},{"$f":"IF(A81,0,IF('Svorio sekmo priemonės diagrama'!B102=0,'Svorio sekmo priemonės diagrama'!B101+5,'Svorio sekmo priemonės diagrama'!B102))","v":"00:00:00"},{"$f":"'Svorio sekmo priemonės diagrama'!C102","v":0}]
[{"$f":"IF(('Svorio sekmo priemonės diagrama'!C103=0)*('Svorio sekmo priemonės diagrama'!C102=0),TRUE)","v":true},{"$f":"IF(A82,0,IF('Svorio sekmo priemonės diagrama'!B103=0,'Svorio sekmo priemonės diagrama'!B102+5,'Svorio sekmo priemonės diagrama'!B103))","v":"00:00:00"},{"$f":"'Svorio sekmo priemonės diagrama'!C103","v":0}]
[{"$f":"IF(('Svorio sekmo priemonės diagrama'!C104=0)*('Svorio sekmo priemonės diagrama'!C103=0),TRUE)","v":true},{"$f":"IF(A83,0,IF('Svorio sekmo priemonės diagrama'!B104=0,'Svorio sekmo priemonės diagrama'!B103+5,'Svorio sekmo priemonės diagrama'!B104))","v":"00:00:00"},{"$f":"'Svorio sekmo priemonės diagrama'!C104","v":0}]
[{"$f":"IF(('Svorio sekmo priemonės diagrama'!C105=0)*('Svorio sekmo priemonės diagrama'!C104=0),TRUE)","v":true},{"$f":"IF(A84,0,IF('Svorio sekmo priemonės diagrama'!B105=0,'Svorio sekmo priemonės diagrama'!B104+5,'Svorio sekmo priemonės diagrama'!B105))","v":"00:00:00"},{"$f":"'Svorio sekmo priemonės diagrama'!C105","v":0}]
[{"$f":"IF(('Svorio sekmo priemonės diagrama'!C106=0)*('Svorio sekmo priemonės diagrama'!C105=0),TRUE)","v":true},{"$f":"IF(A85,0,IF('Svorio sekmo priemonės diagrama'!B106=0,'Svorio sekmo priemonės diagrama'!B105+5,'Svorio sekmo priemonės diagrama'!B106))","v":"00:00:00"},{"$f":"'Svorio sekmo priemonės diagrama'!C106","v":0}]
[{"$f":"IF(('Svorio sekmo priemonės diagrama'!C107=0)*('Svorio sekmo priemonės diagrama'!C106=0),TRUE)","v":true},{"$f":"IF(A86,0,IF('Svorio sekmo priemonės diagrama'!B107=0,'Svorio sekmo priemonės diagrama'!B106+5,'Svorio sekmo priemonės diagrama'!B107))","v":"00:00:00"},{"$f":"'Svorio sekmo priemonės diagrama'!C107","v":0}]
[{"$f":"IF(('Svorio sekmo priemonės diagrama'!C108=0)*('Svorio sekmo priemonės diagrama'!C107=0),TRUE)","v":true},{"$f":"IF(A87,0,IF('Svorio sekmo priemonės diagrama'!B108=0,'Svorio sekmo priemonės diagrama'!B107+5,'Svorio sekmo priemonės diagrama'!B108))","v":"00:00:00"},{"$f":"'Svorio sekmo priemonės diagrama'!C108","v":0}]
[{"$f":"IF(('Svorio sekmo priemonės diagrama'!C109=0)*('Svorio sekmo priemonės diagrama'!C108=0),TRUE)","v":true},{"$f":"IF(A88,0,IF('Svorio sekmo priemonės diagrama'!B109=0,'Svorio sekmo priemonės diagrama'!B108+5,'Svorio sekmo priemonės diagrama'!B109))","v":"00:00:00"},{"$f":"'Svorio sekmo priemonės diagrama'!C109","v":0}]
[{"$f":"IF(('Svorio sekmo priemonės diagrama'!C110=0)*('Svorio sekmo priemonės diagrama'!C109=0),TRUE)","v":true},{"$f":"IF(A89,0,IF('Svorio sekmo priemonės diagrama'!B110=0,'Svorio sekmo priemonės diagrama'!B109+5,'Svorio sekmo priemonės diagrama'!B110))","v":"00:00:00"},{"$f":"'Svorio sekmo priemonės diagrama'!C110","v":0}]
[{"$f":"IF(('Svorio sekmo priemonės diagrama'!C111=0)*('Svorio sekmo priemonės diagrama'!C110=0),TRUE)","v":true},{"$f":"IF(A90,0,IF('Svorio sekmo priemonės diagrama'!B111=0,'Svorio sekmo priemonės diagrama'!B110+5,'Svorio sekmo priemonės diagrama'!B111))","v":"00:00:00"},{"$f":"'Svorio sekmo priemonės diagrama'!C111","v":0}]
[{"$f":"IF(('Svorio sekmo priemonės diagrama'!C112=0)*('Svorio sekmo priemonės diagrama'!C111=0),TRUE)","v":true},{"$f":"IF(A91,0,IF('Svorio sekmo priemonės diagrama'!B112=0,'Svorio sekmo priemonės diagrama'!B111+5,'Svorio sekmo priemonės diagrama'!B112))","v":"00:00:00"},{"$f":"'Svorio sekmo priemonės diagrama'!C112","v":0}]
[{"$f":"IF(('Svorio sekmo priemonės diagrama'!C113=0)*('Svorio sekmo priemonės diagrama'!C112=0),TRUE)","v":true},{"$f":"IF(A92,0,IF('Svorio sekmo priemonės diagrama'!B113=0,'Svorio sekmo priemonės diagrama'!B112+5,'Svorio sekmo priemonės diagrama'!B113))","v":"00:00:00"},{"$f":"'Svorio sekmo priemonės diagrama'!C113","v":0}]
[{"$f":"IF(('Svorio sekmo priemonės diagrama'!C114=0)*('Svorio sekmo priemonės diagrama'!C113=0),TRUE)","v":true},{"$f":"IF(A93,0,IF('Svorio sekmo priemonės diagrama'!B114=0,'Svorio sekmo priemonės diagrama'!B113+5,'Svorio sekmo priemonės diagrama'!B114))","v":"00:00:00"},{"$f":"'Svorio sekmo priemonės diagrama'!C114","v":0}]
[{"$f":"IF(('Svorio sekmo priemonės diagrama'!C115=0)*('Svorio sekmo priemonės diagrama'!C114=0),TRUE)","v":true},{"$f":"IF(A94,0,IF('Svorio sekmo priemonės diagrama'!B115=0,'Svorio sekmo priemonės diagrama'!B114+5,'Svorio sekmo priemonės diagrama'!B115))","v":"00:00:00"},{"$f":"'Svorio sekmo priemonės diagrama'!C115","v":0}]
[{"$f":"IF(('Svorio sekmo priemonės diagrama'!C116=0)*('Svorio sekmo priemonės diagrama'!C115=0),TRUE)","v":true},{"$f":"IF(A95,0,IF('Svorio sekmo priemonės diagrama'!B116=0,'Svorio sekmo priemonės diagrama'!B115+5,'Svorio sekmo priemonės diagrama'!B116))","v":"00:00:00"},{"$f":"'Svorio sekmo priemonės diagrama'!C116","v":0}]
[{"$f":"IF(('Svorio sekmo priemonės diagrama'!C117=0)*('Svorio sekmo priemonės diagrama'!C116=0),TRUE)","v":true},{"$f":"IF(A96,0,IF('Svorio sekmo priemonės diagrama'!B117=0,'Svorio sekmo priemonės diagrama'!B116+5,'Svorio sekmo priemonės diagrama'!B117))","v":"00:00:00"},{"$f":"'Svorio sekmo priemonės diagrama'!C117","v":0}]
[{"$f":"IF(('Svorio sekmo priemonės diagrama'!C118=0)*('Svorio sekmo priemonės diagrama'!C117=0),TRUE)","v":true},{"$f":"IF(A97,0,IF('Svorio sekmo priemonės diagrama'!B118=0,'Svorio sekmo priemonės diagrama'!B117+5,'Svorio sekmo priemonės diagrama'!B118))","v":"00:00:00"},{"$f":"'Svorio sekmo priemonės diagrama'!C118","v":0}]
[{"$f":"IF(('Svorio sekmo priemonės diagrama'!C119=0)*('Svorio sekmo priemonės diagrama'!C118=0),TRUE)","v":true},{"$f":"IF(A98,0,IF('Svorio sekmo priemonės diagrama'!B119=0,'Svorio sekmo priemonės diagrama'!B118+5,'Svorio sekmo priemonės diagrama'!B119))","v":"00:00:00"},{"$f":"'Svorio sekmo priemonės diagrama'!C119","v":0}]
[{"$f":"IF(('Svorio sekmo priemonės diagrama'!C120=0)*('Svorio sekmo priemonės diagrama'!C119=0),TRUE)","v":true},{"$f":"IF(A99,0,IF('Svorio sekmo priemonės diagrama'!B120=0,'Svorio sekmo priemonės diagrama'!B119+5,'Svorio sekmo priemonės diagrama'!B120))","v":"00:00:00"},{"$f":"'Svorio sekmo priemonės diagrama'!C120","v":0}]
[{"$f":"IF(('Svorio sekmo priemonės diagrama'!C121=0)*('Svorio sekmo priemonės diagrama'!C120=0),TRUE)","v":true},{"$f":"IF(A100,0,IF('Svorio sekmo priemonės diagrama'!B121=0,'Svorio sekmo priemonės diagrama'!B120+5,'Svorio sekmo priemonės diagrama'!B121))","v":"00:00:00"},{"$f":"'Svorio sekmo priemonės diagrama'!C121","v":0}]
[{"$f":"IF(('Svorio sekmo priemonės diagrama'!C122=0)*('Svorio sekmo priemonės diagrama'!C121=0),TRUE)","v":true},{"$f":"IF(A101,0,IF('Svorio sekmo priemonės diagrama'!B122=0,'Svorio sekmo priemonės diagrama'!B121+5,'Svorio sekmo priemonės diagrama'!B122))","v":"00:00:00"},{"$f":"'Svorio sekmo priemonės diagrama'!C122","v":0}]
[{"$f":"IF(('Svorio sekmo priemonės diagrama'!C123=0)*('Svorio sekmo priemonės diagrama'!C122=0),TRUE)","v":true},{"$f":"IF(A102,0,IF('Svorio sekmo priemonės diagrama'!B123=0,'Svorio sekmo priemonės diagrama'!B122+5,'Svorio sekmo priemonės diagrama'!B123))","v":"00:00:00"},{"$f":"'Svorio sekmo priemonės diagrama'!C123","v":0}]
[{"$f":"IF(('Svorio sekmo priemonės diagrama'!C124=0)*('Svorio sekmo priemonės diagrama'!C123=0),TRUE)","v":true},{"$f":"IF(A103,0,IF('Svorio sekmo priemonės diagrama'!B124=0,'Svorio sekmo priemonės diagrama'!B123+5,'Svorio sekmo priemonės diagrama'!B124))","v":"00:00:00"},{"$f":"'Svorio sekmo priemonės diagrama'!C124","v":0}]
[{"$f":"IF(('Svorio sekmo priemonės diagrama'!C125=0)*('Svorio sekmo priemonės diagrama'!C124=0),TRUE)","v":true},{"$f":"IF(A104,0,IF('Svorio sekmo priemonės diagrama'!B125=0,'Svorio sekmo priemonės diagrama'!B124+5,'Svorio sekmo priemonės diagrama'!B125))","v":"00:00:00"},{"$f":"'Svorio sekmo priemonės diagrama'!C125","v":0}]
[{"$f":"IF(('Svorio sekmo priemonės diagrama'!C126=0)*('Svorio sekmo priemonės diagrama'!C125=0),TRUE)","v":true},{"$f":"IF(A105,0,IF('Svorio sekmo priemonės diagrama'!B126=0,'Svorio sekmo priemonės diagrama'!B125+5,'Svorio sekmo priemonės diagrama'!B126))","v":"00:00:00"},{"$f":"'Svorio sekmo priemonės diagrama'!C126","v":0}]
[{"$f":"IF(('Svorio sekmo priemonės diagrama'!C127=0)*('Svorio sekmo priemonės diagrama'!C126=0),TRUE)","v":true},{"$f":"IF(A106,0,IF('Svorio sekmo priemonės diagrama'!B127=0,'Svorio sekmo priemonės diagrama'!B126+5,'Svorio sekmo priemonės diagrama'!B127))","v":"00:00:00"},{"$f":"'Svorio sekmo priemonės diagrama'!C127","v":0}]
[{"$f":"IF(('Svorio sekmo priemonės diagrama'!C128=0)*('Svorio sekmo priemonės diagrama'!C127=0),TRUE)","v":true},{"$f":"IF(A107,0,IF('Svorio sekmo priemonės diagrama'!B128=0,'Svorio sekmo priemonės diagrama'!B127+5,'Svorio sekmo priemonės diagrama'!B128))","v":"00:00:00"},{"$f":"'Svorio sekmo priemonės diagrama'!C128","v":0}]
[{"$f":"IF(('Svorio sekmo priemonės diagrama'!C129=0)*('Svorio sekmo priemonės diagrama'!C128=0),TRUE)","v":true},{"$f":"IF(A108,0,IF('Svorio sekmo priemonės diagrama'!B129=0,'Svorio sekmo priemonės diagrama'!B128+5,'Svorio sekmo priemonės diagrama'!B129))","v":"00:00:00"},{"$f":"'Svorio sekmo priemonės diagrama'!C129","v":0}]